bitfinex/quotes_BTCUSD_20220211
["timestamp","ask_amount","ask_price","bid_price","bid_amount"]
[1644568803477,0.18881822,43384.0,43383.0,0.001292]
[1644568803677,1.30116622,43384.0,43381.0,0.01]
[1644568803879,0.320838,43383.0,43381.0,0.00530368]
[1644568804076,0.320838,43383.0,43381.0,0.002]
[1644568804278,0.53618009,43383.0,43381.0,0.002]
[1644568804479,0.436177,43382.0,43381.0,0.059674]
[1644568804878,0.536177,43382.0,43381.0,0.059674]
[1644568805821,0.536177,43382.0,43381.0,0.002]
[1644568806222,0.8110006,43382.0,43381.0,0.002]
[1644568806422,0.8610006,43382.0,43381.0,0.002]
[1644568808326,1.5525106,43382.0,43381.0,0.002]
[1644568809274,0.21035879,43381.0,43380.0,0.11334]
[1644568809475,1.28948289,43381.0,43380.0,0.11334]
[1644568809675,1.012348,43381.0,43380.0,0.11334]
[1644568809876,1.112348,43381.0,43380.0,0.11334]
[1644568810278,1.3867616,43381.0,43380.0,0.11334]
[1644568814136,1.38836144,43381.0,43380.0,0.11334]
[1644568814939,1.036191,43380.0,43378.0,0.11816194]
[1644568815141,1.04401785,43379.0,43378.0,0.11816194]
[1644568815341,0.65,43378.0,43375.0,0.0043]
[1644568815540,1.14401785,43379.0,43375.0,0.0043]
[1644568815541,0.99731985,43377.0,43375.0,0.0043]
[1644568815739,1.31815785,43377.0,43375.0,0.0043]
[1644568815940,1.09731985,43377.0,43375.0,0.0043]
[1644568816340,1.41815785,43377.0,43375.0,0.0043]
[1644568816780,1.09731985,43377.0,43375.0,0.0043]
[1644568816977,1.09731985,43377.0,43376.0,0.00134071]
[1644568817178,0.79151,43377.0,43376.0,0.00134071]
[1644568817378,1.0673775,43377.0,43376.0,0.00134071]
[1644568817579,1.3882155,43377.0,43376.0,0.00134071]
[1644568817778,1.112348,43377.0,43376.0,0.00134071]
[1644568819584,1.012348,43377.0,43376.0,0.00134071]
[1644568820624,0.69151,43377.0,43376.0,0.00134071]
[1644568821225,1.012348,43377.0,43376.0,0.00134071]
[1644568821528,0.69151,43377.0,43376.0,0.00134071]
[1644568821727,1.06359881,43377.0,43376.0,0.00134071]
[1644568823626,1.38443681,43377.0,43376.0,0.00134071]
[1644568824276,1.06359881,43377.0,43376.0,0.00134071]
[1644568824483,1.06530807,43377.0,43376.0,0.00134071]
[1644568824976,0.79151,43377.0,43376.0,0.00134071]
[1644568825378,1.112348,43377.0,43376.0,0.00134071]
[1644568825577,0.79151,43377.0,43376.0,0.00134071]
[1644568826781,0.79151,43377.0,43375.0,0.00064071]
[1644568826782,0.378514,43376.0,43375.0,0.00064071]
[1644568827180,0.478514,43376.0,43375.0,0.00088142]
[1644568831331,0.378514,43376.0,43375.0,0.00088142]
[1644568831533,0.92221276,43377.0,43375.0,0.00088142]
[1644568831534,0.80684776,43377.0,43375.0,0.05088142]
[1644568831786,0.749173,43377.0,43375.0,0.00088142]
[1644568831980,0.69151,43377.0,43375.0,0.00088142]
[1644568832180,0.69151,43377.0,43376.0,0.06400078]
[1644568832381,0.69151,43377.0,43376.0,0.38510849]
[1644568834384,0.05766118,43379.0,43377.0,0.7]
[1644568834584,0.2599218,43383.0,43378.0,0.428528]
[1644568834787,0.2599218,43383.0,43382.0,0.370867]
[1644568834984,0.2599218,43383.0,43382.0,0.420867]
[1644568835383,0.00047859,43389.0,43386.0,0.20094904]
[1644568835635,0.320838,43388.0,43387.0,0.08159757]
[1644568835829,0.00047859,43389.0,43387.0,0.08159757]
[1644568836230,0.3,43392.0,43387.0,0.08159757]
[1644568836431,0.320838,43391.0,43386.0,0.44565332]
[1644568836631,0.00071344,43390.0,43386.0,0.44565332]
[1644568837040,0.320838,43389.0,43386.0,0.44565332]
[1644568837331,0.00071344,43390.0,43387.0,0.54881351]
[1644568837531,0.320838,43390.0,43387.0,0.54881351]
[1644568837734,0.00071344,43390.0,43387.0,0.54881351]
[1644568838131,0.05836444,43390.0,43387.0,0.54881351]
[1644568838735,0.320838,43389.0,43387.0,0.54881351]
[1644568838936,0.00267902,43388.0,43387.0,0.54881351]
[1644568839136,0.00267902,43388.0,43387.0,0.86968051]
[1644568839378,0.00071343,43391.0,43387.0,0.86968051]
[1644568839379,0.00071343,43391.0,43388.0,0.4]
[1644568839581,0.00071343,43391.0,43389.0,0.320867]
[1644568839979,0.115291,43398.0,43389.0,0.320867]
[1644568839980,0.33621812,43397.0,43389.0,0.320867]
[1644568840178,0.00071343,43392.0,43390.0,0.057646]
[1644568840779,0.00071343,43392.0,43391.0,0.320867]
[1644568841178,0.115291,43398.0,43392.0,0.057646]
[1644568841417,0.00071342,43393.0,43392.0,0.057646]
[1644568841980,0.00071342,43393.0,43392.0,0.378513]
[1644568842181,0.00071342,43393.0,43392.0,0.057646]
[1644568842379,0.057644,43395.0,43392.0,0.057646]
[1644568842581,0.320838,43394.0,43392.0,0.057646]
[1644568842883,0.320838,43393.0,43392.0,0.45825632]
[1644568843126,0.10812259,43395.0,43392.0,0.45825632]
[1644568843326,0.320838,43394.0,43392.0,0.45825632]
[1644568843527,0.107644,43395.0,43392.0,0.45825632]
[1644568843725,0.370838,43394.0,43392.0,0.45825632]
[1644568843924,0.05,43394.0,43392.0,0.45825632]
[1644568844126,0.16529,43395.0,43392.0,0.45825632]
[1644568844625,0.486128,43395.0,43393.0,0.06863682]
[1644568844830,0.057644,43395.0,43393.0,0.06863682]
[1644568845827,0.057643,43398.0,43393.0,0.06863682]
[1644568846029,0.02,43403.0,43396.0,0.05]
[1644568846230,0.015,43403.0,43399.0,0.05]
[1644568846429,0.015,43403.0,43400.0,0.59623332]
[1644568846878,0.12244255,43414.0,43400.0,0.59623332]
[1644568846879,0.00024255,43414.0,43412.0,0.08459838]
[1644568847076,0.00024255,43414.0,43411.0,0.32173243]
[1644568847077,0.057623,43414.0,43411.0,0.32173243]
[1644568847279,0.00024255,43414.0,43412.0,0.057621]
[1644568847481,0.320838,43418.0,43412.0,0.057621]
[1644568847678,0.00024255,43414.0,43412.0,0.057621]
[1644568847878,0.61389407,43414.0,43412.0,0.057621]
[1644568848277,0.61413662,43414.0,43412.0,0.057621]
[1644568848676,0.71246204,43414.0,43412.0,0.057621]
[1644568848879,0.82771704,43414.0,43412.0,0.057621]
[1644568849278,0.53633555,43414.0,43412.0,0.057621]
[1644568850934,0.53477344,43414.0,43412.0,0.057621]
[1644568851935,0.53453089,43414.0,43412.0,0.057621]
[1644568853436,0.50932349,43414.0,43412.0,0.057621]
[1644568854276,0.294084,43413.0,43411.0,0.115241]
[1644568854474,0.215255,43414.0,43411.0,0.115241]
[1644568854675,0.057627,43413.0,43411.0,0.115241]
[1644568854876,0.05679339,43413.0,43411.0,0.115241]
[1644568858528,0.05679339,43413.0,43411.0,0.08568352]
[1644568860329,0.05679339,43413.0,43411.0,0.13168352]
[1644568863877,0.294084,43412.0,43411.0,0.13168352]
[1644568864581,0.11442339,43413.0,43411.0,0.13168352]
[1644568865532,0.294084,43412.0,43411.0,0.08568352]
[1644568866529,0.11442339,43413.0,43411.0,0.08568352]
[1644568867029,0.294084,43412.0,43411.0,0.08568352]
[1644568868237,0.11442339,43413.0,43411.0,0.08568352]
[1644568868635,0.294084,43412.0,43409.0,0.22819149]
[1644568868934,0.057627,43411.0,43409.0,0.22819149]
[1644568870183,2.05113629,43410.0,43409.0,0.22819149]
[1644568870381,2.34522029,43410.0,43409.0,0.15252871]
[1644568871181,2.05113629,43410.0,43409.0,0.15252871]
[1644568871681,0.351711,43411.0,43409.0,0.15252871]
[1644568871882,0.057627,43411.0,43409.0,0.15252871]
[1644568873023,2.65538358,43410.0,43409.0,0.15252871]
[1644568875928,2.65538358,43410.0,43409.0,0.48535283]
[1644568876882,2.99820022,43410.0,43409.0,0.48535283]
[1644568878082,2.99859352,43410.0,43409.0,0.48535283]
[1644568878480,2.99859352,43410.0,43409.0,0.15252871]
[1644568878682,2.99859352,43410.0,43409.0,0.11998754]
[1644568879279,2.67990293,43410.0,43409.0,0.11998754]
[1644568881727,2.99997749,43410.0,43409.0,0.11974996]
[1644568882126,2.99997749,43410.0,43409.0,0.0074719]
[1644568882327,3.39406149,43410.0,43409.0,0.0074719]
[1644568882527,3.29406149,43410.0,43409.0,0.0074719]
[1644568882728,3.39406149,43410.0,43409.0,0.0074719]
[1644568883127,3.07398693,43410.0,43409.0,0.0074719]
[1644568883628,2.94946758,43410.0,43409.0,0.0074719]
[1644568884031,3.04946758,43410.0,43409.0,0.0074719]
[1644568884279,3.36134491,43410.0,43409.0,0.0074719]
[1644568884480,3.04946758,43410.0,43409.0,0.0074719]
[1644568885482,3.33045237,43410.0,43409.0,0.0074719]
[1644568886880,3.7220652,43410.0,43409.0,0.0074719]
[1644568888034,3.33045237,43410.0,43409.0,0.0074719]
[1644568888233,3.45996746,43410.0,43409.0,0.0074719]
[1644568888433,3.72294465,43410.0,43409.0,0.0074719]
[1644568888635,3.33045237,43410.0,43409.0,0.0074719]
[1644568889940,3.72294465,43410.0,43409.0,0.0074719]
[1644568890841,3.33045237,43410.0,43409.0,0.0074719]
[1644568891039,0.9,43409.0,43408.0,0.0074719]
[1644568891242,1.44002683,43409.0,43408.0,0.0074719]
[1644568891550,2.25499574,43409.0,43408.0,0.00638318]
[1644568891776,2.11478557,43409.0,43408.0,0.00638318]
[1644568892777,0.294084,43408.0,43407.0,0.057628]
[1644568893176,0.42367557,43408.0,43407.0,0.057628]
[1644568893376,0.52367557,43408.0,43407.0,0.057628]
[1644568895282,0.42367557,43408.0,43407.0,0.057628]
[1644568895535,0.294084,43408.0,43407.0,0.057628]
[1644568898830,0.344084,43408.0,43405.0,0.115302]
[1644568899033,0.351723,43407.0,43405.0,0.115302]
[1644568902082,0.451723,43407.0,43405.0,0.115302]
[1644568903326,0.351723,43407.0,43405.0,0.115302]
[1644568908287,0.351723,43407.0,43406.0,0.27228703]
[1644568908288,0.005957,43407.0,43406.0,0.27228703]
[1644568908491,0.69111,43409.0,43407.0,0.83883094]
[1644568908689,0.69111,43409.0,43408.0,0.68744734]
[1644568908888,0.345409,43409.0,43408.0,0.73744734]
[1644568909090,0.20059647,43424.0,43410.0,0.320806]
[1644568909091,0.00024255,43412.0,43410.0,0.320806]
[1644568909290,0.12997034,43416.0,43415.0,0.21253127]
[1644568909291,0.00024255,43416.0,43415.0,0.21253127]
[1644568909489,0.39259659,43420.0,43416.0,0.320806]
[1644568909694,0.00024312,43419.0,43417.0,0.046]
[1644568909990,0.39259659,43422.0,43417.0,0.046]
[1644568909991,0.00047854,43418.0,43417.0,0.046]
[1644568910189,0.05809654,43418.0,43417.0,0.366806]
[1644568910631,0.05809654,43418.0,43417.0,0.33625323]
[1644568910830,0.057618,43418.0,43417.0,0.33625323]
[1644568911330,0.057618,43418.0,43417.0,0.67274575]
[1644568912232,0.057618,43418.0,43417.0,0.35193975]
[1644568913431,0.057618,43418.0,43417.0,0.01544723]
[1644568920139,0.057618,43418.0,43417.0,0.38625323]
[1644568920335,0.057618,43418.0,43417.0,0.01544723]
[1644568921538,0.18758834,43418.0,43417.0,0.01544723]
[1644568926332,0.18737357,43418.0,43417.0,0.01544723]
[1644568927839,2.18737357,43418.0,43417.0,0.01544723]
[1644568928635,4.18737357,43418.0,43417.0,0.01544723]
[1644568929879,4.53986657,43418.0,43417.0,0.01544723]
[1644568930679,4.18737357,43418.0,43416.0,0.057618]
[1644568930881,4.18761669,43418.0,43416.0,0.057618]
[1644568931083,0.12997034,43417.0,43415.0,0.057618]
[1644568931280,0.05786412,43417.0,43415.0,0.057618]
[1644568931881,0.18693023,43417.0,43415.0,0.057618]
[1644568932080,0.05786412,43417.0,43415.0,0.057618]
[1644568932382,0.18691898,43417.0,43415.0,0.057618]
[1644568939481,0.05786412,43417.0,43415.0,0.057618]
[1644568940636,0.05786412,43417.0,43416.0,0.2748297]
[1644568940840,0.057621,43417.0,43416.0,0.3248297]
[1644568941937,0.057621,43417.0,43416.0,0.05]
[1644568944678,0.057621,43417.0,43415.0,0.103618]
[1644568944879,0.057621,43417.0,43415.0,0.153618]
[1644568945079,0.057621,43417.0,43415.0,0.103618]
[1644568945280,0.057621,43417.0,43415.0,0.153618]
[1644568945880,0.057621,43417.0,43415.0,0.107618]
[1644568946084,0.057621,43417.0,43415.0,0.057618]
[1644568946281,0.057621,43417.0,43415.0,0.107618]
[1644568946682,0.057621,43417.0,43415.0,0.057618]
[1644568946882,0.057621,43417.0,43415.0,0.107618]
[1644568947281,0.057621,43417.0,43415.0,0.057618]
[1644568947884,0.18651439,43417.0,43415.0,0.057618]
[1644568949027,0.24413857,43417.0,43415.0,0.057618]
[1644568949827,0.24413857,43417.0,43415.0,0.05750722]
[1644568952781,0.63673516,43417.0,43415.0,0.05750722]
[1644568954181,0.39259659,43416.0,43415.0,0.05750722]
[1644568954380,0.63673516,43417.0,43415.0,0.05750722]
[1644568955629,0.39259659,43416.0,43415.0,0.05750722]
[1644568956830,0.34413857,43417.0,43415.0,0.05750722]
[1644568958431,0.29031578,43417.0,43415.0,0.05750722]
[1644568958632,0.19031578,43417.0,43415.0,0.05750722]
[1644568960281,0.34630748,43417.0,43415.0,0.05750722]
[1644568960480,0.011519,43416.0,43413.0,0.057637]
[1644568960682,0.057641,43413.0,43401.0,0.23049]
[1644568960885,0.39277326,43409.0,43400.0,0.3]
[1644568961083,0.39277326,43409.0,43397.0,0.3]
[1644568961284,0.49277326,43409.0,43397.0,0.3]
[1644568961483,0.30313605,43401.0,43400.0,0.115296]
[1644568961783,0.39277326,43408.0,43400.0,0.115296]
[1644568961784,0.05765,43402.0,43400.0,0.115296]
[1644568961981,0.1153,43402.0,43400.0,0.115296]
[1644568962783,0.33456018,43401.0,43400.0,0.115296]
[1644568963233,0.39220818,43401.0,43399.0,0.057646]
[1644568964341,0.39220818,43401.0,43399.0,0.054146]
[1644568965136,0.49220818,43401.0,43399.0,0.054146]
[1644568966136,0.49220818,43401.0,43396.0,0.057657]
[1644568966137,0.66517518,43401.0,43396.0,0.057657]
[1644568966335,0.66517518,43401.0,43393.0,0.115309]
[1644568966336,0.11530989,43399.0,43393.0,0.115309]
[1644568966537,0.3404102,43394.0,43393.0,0.115309]
[1644568966778,0.4404102,43394.0,43393.0,0.115309]
[1644568967479,0.1,43394.0,43392.0,0.11531]
[1644568968081,0.057655,43395.0,43392.0,0.11531]
[1644568968281,1.99626382,43394.0,43392.0,0.11531]
[1644568969280,0.057653,43393.0,43392.0,0.11531]
[1644568972330,0.287653,43393.0,43392.0,0.11531]
[1644568977389,0.287653,43393.0,43392.0,0.46853666]
[1644568977587,0.287653,43393.0,43392.0,0.11531]
[1644568982182,0.23,43393.0,43392.0,0.72135524]
[1644568982784,0.23,43393.0,43392.0,0.40054924]
[1644568983085,0.23,43393.0,43392.0,0.48242568]
[1644568983482,0.23,43393.0,43392.0,0.19718644]
[1644568983684,0.23,43393.0,43392.0,0.80317893]
[1644568983884,0.23,43393.0,43392.0,0.80448972]
[1644568984084,0.23,43393.0,43392.0,0.85048972]
[1644568984884,0.23,43393.0,43392.0,0.85042268]
[1644568986449,0.23,43393.0,43392.0,0.56523619]
[1644568987451,0.23,43393.0,43392.0,0.16255375]
[1644568988252,0.23,43393.0,43392.0,0.11655375]
[1644568989276,0.23,43393.0,43392.0,0.11531]
[1644568994529,0.23,43393.0,43392.0,0.11031]
[1644568998886,0.225,43393.0,43392.0,0.11031]
[1644569007392,0.22469301,43393.0,43392.0,0.11031]
[1644569009632,0.85,43392.0,43380.0,0.56721561]
[1644569009834,0.85,43392.0,43374.0,0.001]
[1644569009835,0.057661,43385.0,43376.0,0.000636]
[1644569010032,0.115328,43385.0,43376.0,0.000636]
[1644569010232,0.057667,43385.0,43376.0,0.000636]
[1644569010433,0.05766817,43383.0,43380.0,0.057667]
[1644569010633,0.05766817,43383.0,43382.0,0.33158362]
[1644569011035,0.05766817,43383.0,43382.0,0.65238962]
[1644569011036,0.173018,43383.0,43382.0,0.65238962]
[1644569011232,0.173018,43383.0,43382.0,0.33158362]
[1644569012281,0.173018,43383.0,43381.0,0.115328]
[1644569012479,0.23068169,43383.0,43381.0,0.115328]
[1644569013480,0.23068169,43383.0,43381.0,0.38988306]
[1644569015738,0.23068169,43383.0,43381.0,0.115328]
[1644569015739,0.173018,43383.0,43381.0,0.115328]
[1644569016741,0.173018,43383.0,43381.0,0.42175948]
[1644569017837,0.403018,43383.0,43381.0,0.42175948]
[1644569018640,0.403018,43383.0,43381.0,0.115328]
[1644569018837,0.2710011,43382.0,43381.0,0.115328]
[1644569020387,0.2710011,43382.0,43380.0,0.057657]
[1644569021387,2.32977005,43383.0,43380.0,0.057657]
[1644569022188,0.057673,43382.0,43380.0,0.057657]
[1644569024439,0.27441373,43381.0,43380.0,0.057657]
[1644569024631,0.057673,43382.0,43380.0,0.057657]
[1644569027185,0.0466026,43382.0,43380.0,0.057657]
[1644569029085,0.0466026,43382.0,43380.0,0.26354469]
[1644569029288,0.0466026,43382.0,43380.0,0.26377971]
[1644569031942,0.0466026,43382.0,43380.0,0.05789202]
[1644569033339,2.0466026,43382.0,43380.0,0.05789202]
[1644569033539,2.0466026,43382.0,43380.0,0.057657]
[1644569033740,2.71555982,43381.0,43380.0,0.057657]
[1644569033940,2.71544728,43381.0,43380.0,0.057657]
[1644569035396,2.71544728,43381.0,43380.0,0.05789202]
[1644569035793,2.0466026,43382.0,43380.0,0.05789202]
[1644569036796,2.0466026,43382.0,43380.0,0.057657]
[1644569037197,0.27272155,43381.0,43380.0,0.057657]
[1644569037599,1.98685923,43381.0,43380.0,0.057657]
[1644569038044,1.71413768,43381.0,43380.0,0.057657]
[1644569040339,2.0466026,43382.0,43380.0,0.057657]
[1644569041141,0.27603969,43381.0,43380.0,0.057657]
[1644569043485,2.33283672,43382.0,43380.0,0.057657]
[1644569044085,0.267938,43381.0,43380.0,0.057657]
[1644569045087,2.43283672,43382.0,43380.0,0.057657]
[1644569046437,2.0466026,43382.0,43380.0,0.057657]
[1644569046836,2.0466026,43382.0,43380.0,0.25964495]
[1644569047239,2.0466026,43382.0,43381.0,0.096]
[1644569047240,1.654054,43382.0,43381.0,0.096]
[1644569047437,1.12879161,43382.0,43381.0,0.39672478]
[1644569047637,0.78289061,43382.0,43381.0,0.71753078]
[1644569048240,0.43698661,43382.0,43381.0,0.71753078]
[1644569048635,0.09107861,43382.0,43381.0,0.71753078]
[1644569049286,0.057651,43388.0,43382.0,0.970806]
[1644569049488,0.00071324,43389.0,43382.0,1.07104102]
[1644569049690,0.00071324,43389.0,43384.0,0.320806]
[1644569049987,0.115293,43398.0,43392.0,0.172931]
[1644569050187,0.1,43400.0,43391.0,0.046]
[1644569050387,0.057645,43395.0,43391.0,0.046]
[1644569050589,0.057645,43395.0,43393.0,0.115288]
[1644569050789,0.33038131,43395.0,43393.0,0.115288]
[1644569050987,0.057645,43395.0,43393.0,0.115288]
[1644569051790,0.115302,43394.0,43393.0,0.115288]
[1644569052191,0.095302,43394.0,43393.0,0.115288]
[1644569053742,1.84227484,43394.0,43393.0,0.115288]
[1644569054542,1.86684281,43394.0,43393.0,0.115288]
[1644569056987,1.86684281,43394.0,43393.0,0.10375921]
[1644569057187,1.86684281,43394.0,43392.0,0.115301]
[1644569057188,1.92450181,43394.0,43392.0,0.115301]
[1644569057388,0.02456797,43393.0,43392.0,0.115301]
[1644569057991,1.89993384,43394.0,43392.0,0.115301]
[1644569058190,0.02456511,43393.0,43392.0,0.115301]
[1644569058593,0.02456511,43393.0,43392.0,0.44260579]
[1644569058791,0.02456511,43393.0,43392.0,0.115301]
[1644569066985,0.15290203,43393.0,43390.0,0.057664]
[1644569067185,0.08222911,43392.0,43390.0,0.057664]
[1644569067386,0.02456511,43391.0,43390.0,0.057664]
[1644569067585,0.02456511,43391.0,43385.0,0.115328]
[1644569067785,0.34392954,43389.0,43385.0,0.115328]
[1644569068046,0.22833692,43393.0,43385.0,0.115328]
[1644569068047,0.36849465,43388.0,43385.0,0.115328]
[1644569068238,0.34392954,43388.0,43385.0,0.115328]
[1644569069238,0.40159554,43388.0,43385.0,0.115328]
[1644569069840,0.45926154,43388.0,43385.0,0.115328]
[1644569070243,0.34392954,43387.0,43385.0,0.115328]
[1644569070443,0.40159554,43387.0,43385.0,0.115328]
[1644569070746,0.34392954,43386.0,43385.0,0.115328]
[1644569074099,0.3096609,43386.0,43385.0,0.115328]
[1644569074301,0.4096609,43386.0,43385.0,0.115328]
[1644569074900,0.4673279,43386.0,43384.0,0.115331]
[1644569075098,0.61798905,43385.0,43384.0,0.115331]
[1644569075299,0.32126594,43385.0,43384.0,0.115331]
[1644569075737,0.61797408,43385.0,43384.0,0.115331]
[1644569075936,0.32126991,43385.0,43384.0,0.115331]
[1644569076542,0.71501384,43385.0,43384.0,0.115331]
[1644569078343,0.115333,43386.0,43384.0,0.63640081]
[1644569078542,0.23,43388.0,43385.0,0.66796654]
[1644569078742,0.23,43388.0,43387.0,0.370806]
[1644569078941,0.23,43388.0,43387.0,0.416806]
[1644569079141,0.23,43388.0,43387.0,0.466806]
[1644569079391,0.23,43388.0,43387.0,0.87025506]
[1644569080591,0.23,43388.0,43387.0,1.15820194]
[1644569080792,0.23,43388.0,43387.0,1.24312553]
[1644569080990,0.23,43388.0,43387.0,1.15820194]
[1644569081392,0.23,43388.0,43387.0,1.10820194]
[1644569081994,2.23,43388.0,43387.0,1.10820194]
[1644569082592,2.21626669,43388.0,43387.0,1.15820194]
[1644569082793,2.21626669,43388.0,43387.0,0.416806]
[1644569083047,2.21626669,43388.0,43387.0,0.096]
[1644569087686,2.21626669,43388.0,43387.0,0.05]
[1644569098646,2.33158769,43388.0,43385.0,0.057648]
[1644569098845,2.48925369,43388.0,43385.0,0.057648]
[1644569101646,2.52303147,43388.0,43385.0,0.057648]
[1644569101896,2.52303147,43388.0,43381.0,0.11598649]
[1644569102095,0.115358,43386.0,43378.0,0.00023502]
[1644569102295,0.05768,43386.0,43381.0,0.0006355]
[1644569103196,0.057679,43384.0,43382.0,0.05768]
[1644569104400,0.0575934,43384.0,43382.0,0.05768]
[1644569105400,0.1075934,43384.0,43382.0,0.05768]
[1644569105839,0.0575934,43384.0,43382.0,0.05768]
[1644569109042,0.0575934,43384.0,43383.0,0.00114798]
[1644569110096,0.1075934,43384.0,43383.0,0.00114798]
[1644569112097,0.1075934,43384.0,43381.0,0.11598303]
[1644569112098,0.42236156,43384.0,43381.0,0.11598303]
[1644569112300,0.42236156,43384.0,43373.0,0.0021]
[1644569112301,0.407679,43382.0,43373.0,0.0021]
[1644569112501,0.057687,43379.0,43373.0,0.0021]
[1644569112700,0.18215301,43378.0,43373.0,0.0021]
[1644569113143,0.3818926,43377.0,43373.0,0.0021]
[1644569113346,0.3818926,43377.0,43371.0,0.0054]
[1644569113347,0.11538343,43376.0,43371.0,0.00325262]
[1644569113740,0.05769,43375.0,43371.0,0.00325262]
[1644569114141,0.10769,43375.0,43371.0,0.00325262]
[1644569114342,0.28351562,43373.0,43371.0,0.00325262]
[1644569114640,0.27714891,43372.0,43371.0,0.00325262]
[1644569117487,0.95,43372.0,43370.0,0.001]
[1644569117686,0.057699,43371.0,43370.0,0.001]
[1644569117888,0.057699,43371.0,43369.0,0.00063896]
[1644569118286,0.35,43370.0,43366.0,0.02237792]
[1644569118590,0.34343785,43370.0,43366.0,0.02237792]
[1644569118786,0.17310504,43368.0,43366.0,0.02237792]
[1644569118987,0.115404,43368.0,43366.0,0.02237792]
[1644569119788,0.29244118,43367.0,43366.0,0.02237792]
[1644569120387,0.215404,43368.0,43366.0,0.02237792]
[1644569120843,0.27356767,43367.0,43366.0,0.02237792]
[1644569121245,0.215404,43368.0,43366.0,0.02237792]
[1644569121442,0.115404,43368.0,43366.0,0.02237792]
[1644569121842,0.28538851,43367.0,43366.0,0.02237792]
[1644569122341,0.215404,43368.0,43366.0,0.02237792]
[1644569123342,0.115404,43368.0,43366.0,0.02237792]
[1644569124591,0.115404,43368.0,43366.0,0.10554768]
[1644569125191,0.115404,43368.0,43366.0,0.44473801]
[1644569125591,0.115404,43368.0,43366.0,0.66234387]
[1644569126591,2.31263995,43368.0,43366.0,0.66234387]
[1644569126991,2.31263995,43368.0,43366.0,0.65734387]
[1644569127793,2.31263995,43368.0,43366.0,0.65757482]
[1644569128042,2.31263995,43368.0,43366.0,0.97838082]
[1644569128043,0.047702,43368.0,43366.0,0.97838082]
[1644569128238,0.047702,43368.0,43366.0,0.65757482]
[1644569128638,0.047702,43368.0,43366.0,0.43996896]
[1644569128940,0.047702,43368.0,43366.0,0.3567992]
[1644569129239,0.105384,43368.0,43366.0,0.3567992]
[1644569129638,2.70804173,43367.0,43366.0,0.3567992]
[1644569130739,0.105384,43368.0,43366.0,0.63153136]
[1644569130940,0.105384,43368.0,43367.0,0.2781125]
[1644569131139,0.057682,43368.0,43367.0,0.27834345]
[1644569131543,0.057682,43368.0,43367.0,0.27962137]
[1644569133288,0.057682,43368.0,43367.0,0.00150887]
[1644569133686,2.4478426,43368.0,43367.0,0.00150887]
[1644569136343,0.057682,43368.0,43367.0,0.27147201]
[1644569136747,0.057682,43368.0,43367.0,0.00150887]
[1644569137944,0.057682,43368.0,43367.0,0.27423804]
[1644569138546,0.057682,43368.0,43367.0,0.00150887]
[1644569138746,1.89131312,43368.0,43367.0,0.00150887]
[1644569140189,0.057682,43368.0,43367.0,0.00150887]
[1644569140394,0.11537,43369.0,43367.0,0.62508933]
[1644569140588,0.23,43371.0,43368.0,0.6474235]
[1644569140789,0.23,43371.0,43370.0,0.320806]
[1644569140992,0.23,43371.0,43370.0,0.28031674]
[1644569141388,0.287674,43371.0,43370.0,0.522764]
[1644569141591,0.287674,43371.0,43370.0,0.84380095]
[1644569141789,0.23,43371.0,43370.0,0.89380095]
[1644569142187,0.23,43371.0,43370.0,0.57299495]
[1644569142588,0.23,43371.0,43370.0,0.28054769]
[1644569145851,0.23,43371.0,43370.0,0.00023095]
[1644569146149,0.23,43371.0,43369.0,0.11663217]
[1644569146150,0.345365,43371.0,43369.0,0.11686312]
[1644569146787,0.345365,43371.0,43369.0,0.11663217]
[1644569146988,0.345365,43371.0,43369.0,0.05918387]
[1644569147991,0.345365,43371.0,43369.0,0.05895292]
[1644569148189,0.345365,43371.0,43369.0,0.11686623]
[1644569149091,0.345365,43371.0,43369.0,0.11663528]
[1644569149291,0.345365,43371.0,43369.0,0.11686623]
[1644569150194,0.287682,43371.0,43369.0,0.00150887]
[1644569150542,0.287682,43371.0,43369.0,0.00118443]
[1644569150937,0.39322044,43370.0,43369.0,0.00141538]
[1644569151540,0.39322044,43370.0,43369.0,0.00118443]
[1644569152941,0.39322044,43370.0,43369.0,0.00141538]
[1644569153142,0.39322044,43370.0,43369.0,0.00118443]
[1644569153344,0.34536267,43371.0,43369.0,0.00118443]
[1644569154148,0.34536267,43371.0,43369.0,0.00141538]
[1644569154590,0.35285757,43370.0,43369.0,0.00141538]
[1644569155188,0.35285757,43370.0,43369.0,0.00118443]
[1644569155788,0.35285757,43370.0,43368.0,0.00023095]
[1644569156089,0.057682,43369.0,43367.0,0.00023095]
[1644569156288,0.057682,43369.0,43367.0,0.00066876]
[1644569156490,0.057682,43369.0,43367.0,0.00089971]
[1644569157292,0.057682,43369.0,43367.0,0.00023095]
[1644569157495,0.057682,43369.0,43366.0,0.40052482]
[1644569157893,0.115364,43369.0,43366.0,0.40052482]
[1644569158540,0.115364,43369.0,43366.0,0.39985606]
[1644569161789,0.115364,43369.0,43366.0,0.39485606]
[1644569164295,0.115364,43369.0,43367.0,0.320806]
[1644569164494,0.115364,43369.0,43367.0,0.00023095]
[1644569164700,0.057682,43369.0,43368.0,0.05]
[1644569164898,0.23,43371.0,43368.0,0.716806]
[1644569164899,0.52531682,43371.0,43368.0,0.716806]
[1644569165196,0.00043724,43377.0,43368.0,0.716806]
[1644569165197,0.29534782,43376.0,43371.0,0.05]
[1644569165401,0.00043724,43377.0,43376.0,0.320806]
[1644569165402,0.29578506,43377.0,43376.0,0.320806]
[1644569165644,0.00043724,43377.0,43376.0,0.61339393]
[1644569165842,0.29534782,43378.0,43376.0,0.61339393]
[1644569166040,0.29601677,43377.0,43376.0,0.66391995]
[1644569166241,0.29601677,43377.0,43376.0,0.72158153]
[1644569167040,0.06914724,43386.0,43377.0,0.321016]
[1644569167041,0.29534782,43378.0,43377.0,0.321016]
[1644569167243,0.29601678,43379.0,43377.0,0.5922715]
[1644569167441,0.29601678,43379.0,43378.0,0.321016]
[1644569167642,0.29601678,43379.0,43378.0,0.046]
[1644569167842,0.00066896,43379.0,43378.0,0.367016]
[1644569168242,0.34454508,43381.0,43378.0,0.046]
[1644569168243,0.050278,43380.0,43378.0,0.046]
[1644569168742,0.2953221,43379.0,43378.0,0.046]
[1644569168942,0.34521401,43381.0,43378.0,0.6957423]